Workbook

Sheet 5_days
A1: Заявка на отгрузки | E1: 100 | F1: 300 | G1: 300 | H1: 200 | L1: 100 | M1: 100 | N1: 100 | O1: 100 | S1: 150 | T1: 200 | U1: 250 | V1: 400 | Z1: 50 | AA1: 200 | AB1: 70 | AC1: 10 | AG1: 100 | AH1: 200 | AI1: 300 | AJ1: 500
D3: Послед | E3: 1 | F3: 1 | G3: 1 | H3: 1 | I3: 1 | J3: 1 | K3: Послед | L3: 2 | M3: 2 | N3: 2 | O3: 2 | P3: 2 | Q3: 2 | R3: Послед | S3: 3 | T3: 3 | U3: 3 | V3: 3 | W3: 3 | X3: 3 | Y3: Послед | Z3: 4 | AA3: 4 | AB3: 4 | AC3: 4 | AD3: 4 | AE3: 4 | AF3: Послед | AG3: 5 | AH3: 5 | AI3: 5 | AJ3: 5 | AK3: 5 | AL3: 5
E4: A | F4: B | G4: C | H4: D | I4: I | J4: ИТОГО | L4: A | M4: B | N4: C | O4: D | P4: I | Q4: ИТОГО | S4: A | T4: B | U4: C | V4: D | W4: I | X4: ИТОГО | Z4: A | AA4: B | AB4: C | AC4: D | AD4: I | AE4: ИТОГО | AG4: A | AH4: B | AI4: C | AJ4: D | AK4: I | AL4: ИТОГО | AN4: ВСЕГО
A5: Процессное время | E5: 0 | F5: 0 | G5: 0 | H5: 0 | I5: 0 | J5: =SUM(E5:H5) -> 0 | L5: 0 | M5: 0 | N5: 0 | O5: 0 | P5: 0 | Q5: =SUM(L5:O5) -> 0 | S5: 0 | T5: 0 | U5: 0 | V5: 0 | W5: 0 | X5: =SUM(S5:V5) -> 0 | Z5: 0 | AA5: 0 | AB5: 0 | AC5: 0 | AD5: 0 | AE5: =SUM(Z5:AC5) -> 0 | AG5: 0 | AH5: 0 | AI5: 0 | AJ5: 0 | AK5: 0 | AL5: =SUM(AG5:AJ5) -> 0
A6: Последовательность | E6: 1 | F6: 0 | G6: 0 | H6: 0 | I6: 0 | J6: =SUM(E6:H6) -> 1 | L6: 0 | M6: 0 | N6: 0 | O6: 0 | P6: 0 | Q6: =SUM(L6:O6) -> 0 | S6: 0 | T6: 0 | U6: 0 | V6: 0 | W6: 0 | X6: =SUM(S6:V6) -> 0 | Z6: 0 | AA6: 0 | AB6: 0 | AC6: 0 | AD6: 0 | AE6: =SUM(Z6:AC6) -> 0 | AG6: 0 | AH6: 0 | AI6: 0 | AJ6: 0 | AK6: 0 | AL6: =SUM(AG6:AJ6) -> 0
A7: Проверка последовательности | E7: =COUNTIF($E$6:$I$6,E6) -> 1 | F7: 4 | G7: 4 | H7: 4 | I7: =COUNTIF($E$6:$I$6,I6) -> 4 | J7: =SUM(E7:H7) -> 13 | L7: =COUNTIF($L$6:$P$6,L6) -> 5 | M7: =COUNTIF($L$6:$P$6,M6) -> 5 | N7: 5 | O7: 5 | P7: 5 | Q7: 20 | S7: =COUNTIF($S$6:$W$6,S6) -> 5 | T7: =COUNTIF($S$6:$W$6,T6) -> 5 | U7: 5 | V7: 5 | W7: 5 | X7: 20 | Z7: =COUNTIF($Z$6:$AD$6,Z6) -> 5 | AA7: =COUNTIF($Z$6:$AD$6,AA6) -> 5 | AB7: 5 | AC7: 5 | AD7: 5 | AE7: 20 | AG7: =COUNTIF($AG$6:$AK$6,AG6) -> 5 | AH7: =COUNTIF($AG$6:$AK$6,AH6) -> 5 | AI7: 5 | AJ7: 5 | AK7: 5 | AL7: 20 | AN7: =SUM(J7,Q7,X7,AE7,AL7) -> 93
A8: Объем производства | E8: =E24*E5 -> 0 | F8: =F24*F5 -> 0 | G8: 0 | H8: 0 | J8: 0 | L8: =L24*L5 -> 0 | M8: =M24*M5 -> 0 | N8: 0 | O8: 0 | Q8: 0 | S8: =S24*S5 -> 0 | T8: =T24*T5 -> 0 | U8: 0 | V8: 0 | X8: 0 | Z8: =Z24*Z5 -> 0 | AA8: =AA24*AA5 -> 0 | AB8: 0 | AC8: 0 | AE8: 0 | AG8: =AG24*AG5 -> 0 | AH8: =AH24*AH5 -> 0 | AI8: 0 | AJ8: 0 | AL8: 0
A9: Отгрузка | E9: =E1 -> 100 | F9: =F1 -> 300 | G9: 300 | H9: 200 | J9: 900 | L9: =L1 -> 100 | M9: =M1 -> 100 | N9: 100 | O9: 100 | Q9: 400 | S9: =S1 -> 150 | T9: =T1 -> 200 | U9: 250 | V9: 400 | X9: 1000 | Z9: =Z1 -> 50 | AA9: =AA1 -> 200 | AB9: 70 | AC9: 10 | AE9: 330 | AG9: =AG1 -> 100 | AH9: =AH1 -> 200 | AI9: 300 | AJ9: 500 | AL9: 1100
A10: Остаток на складе | E10: =E8-E9 -> -100 | F10: =F8-F9 -> -300 | G10: -300 | H10: -200 | J10: -900 | L10: =E10+L8-L9 -> -200 | M10: =F10+M8-M9 -> -400 | N10: -400 | O10: -300 | Q10: -1300 | S10: =L10+S8-S9 -> -350 | T10: =M10+T8-T9 -> -600 | U10: =N10+U8-U9 -> -650 | V10: =O10+V8-V9 -> -700 | X10: -2300 | Z10: =S10+Z8-Z9 -> -400 | AA10: =T10+AA8-AA9 -> -800 | AB10: =U10+AB8-AB9 -> -720 | AC10: =V10+AC8-AC9 -> -710 | AE10: -2630 | AG10: =Z10+AG8-AG9 -> -500 | AH10: =AA10+AH8-AH9 -> -1000 | AI10: =AB10+AI8-AI9 -> -1020 | AJ10: =AC10+AJ8-AJ9 -> -1210 | AL10: -3730
A12: Время на переналадку | E12: =E30 -> 0 | F12: =F30 -> 5 | G12: 5 | H12: 10 | L12: =L30 -> 0 | M12: =M30 -> 5 | N12: 5 | O12: 10 | S12: =S30 -> 0 | T12: =T30 -> 5 | U12: 5 | V12: 10 | Z12: =Z30 -> 0 | AA12: =AA30 -> 5 | AB12: 5 | AC12: 10 | AG12: =AG30 -> 0 | AH12: =AH30 -> 5 | AI12: 5 | AJ12: 10
A13: Фонд времени | E13: =E5+E12 -> 0 | F13: =F5+F12 -> 5 | G13: 5 | H13: 10 | I13: 0 | J13: =SUM(E13:I13) -> 20 | L13: =L5+L12 -> 0 | M13: =M5+M12 -> 5 | N13: =N5+N12 -> 5 | O13: =O5+O12 -> 10 | P13: =P5+P12 -> 0 | Q13: =SUM(L13:P13) -> 20 | S13: =S5+S12 -> 0 | T13: =T5+T12 -> 5 | U13: =U5+U12 -> 5 | V13: =V5+V12 -> 10 | W13: =W5+W12 -> 0 | X13: =SUM(S13:W13) -> 20 | Z13: =Z5+Z12 -> 0 | AA13: =AA5+AA12 -> 5 | AB13: =AB5+AB12 -> 5 | AC13: =AC5+AC12 -> 10 | AD13: =AD5+AD12 -> 0 | AE13: =SUM(Z13:AD13) -> 20 | AG13: =AG5+AG12 -> 0 | AH13: =AH5+AH12 -> 5 | AI13: =AI5+AI12 -> 5 | AJ13: =AJ5+AJ12 -> 10 | AK13: =AK5+AK12 -> 0 | AL13: =SUM(AG13:AK13) -> 20
A15: Потери | D15: 0 | E15: =E37 -> 0 | F15: =F37 -> 0 | G15: -5 | H15: -20 | L15: =L37 -> 0 | M15: =M37 -> 0 | N15: -5 | O15: -20 | S15: =S37 -> 0 | T15: =T37 -> 0 | U15: -5 | V15: -20 | Z15: =Z37 -> 0 | AA15: =AA37 -> 0 | AB15: -5 | AC15: -20 | AG15: =AG37 -> 0 | AH15: =AH37 -> 0 | AI15: -5 | AJ15: -20
A16: Товарный выпуск | E16: =E8*E21 -> 0 | F16: =F8*F21 -> 0 | G16: 0 | H16: 0 | I16: 0 | J16: =SUM(E16:I16) -> 0 | L16: =L8*L21 -> 0 | M16: =M8*M21 -> 0 | N16: 0 | O16: 0 | P16: 0 | Q16: =SUM(L16:P16) -> 0 | S16: =S8*S21 -> 0 | T16: =T8*T21 -> 0 | U16: 0 | V16: 0 | W16: 0 | X16: =SUM(S16:W16) -> 0 | Z16: =Z8*Z21 -> 0 | AA16: =AA8*AA21 -> 0 | AB16: 0 | AC16: 0 | AD16: 0 | AE16: =SUM(Z16:AD16) -> 0 | AG16: =AG8*AG21 -> 0 | AH16: =AH8*AH21 -> 0 | AI16: 0 | AJ16: 0 | AK16: 0 | AL16: =SUM(AG16:AK16) -> 0
A17: Себестоимостьпроизводства | E17: =-E8*E22 -> 0 | F17: =-F8*F22 -> 0 | G17: 0 | H17: 0 | I17: 0 | J17: =SUM(E17:I17) -> 0 | L17: =-L8*L22 -> 0 | M17: =-M8*M22 -> 0 | N17: 0 | O17: 0 | P17: 0 | Q17: =SUM(L17:P17) -> 0 | S17: =-S8*S22 -> 0 | T17: =-T8*T22 -> 0 | U17: 0 | V17: 0 | W17: 0 | X17: =SUM(S17:W17) -> 0 | Z17: =-Z8*Z22 -> 0 | AA17: =-AA8*AA22 -> 0 | AB17: 0 | AC17: 0 | AD17: 0 | AE17: =SUM(Z17:AD17) -> 0 | AG17: =-AG8*AG22 -> 0 | AH17: =-AH8*AH22 -> 0 | AI17: 0 | AJ17: 0 | AK17: 0 | AL17: =SUM(AG17:AK17) -> 0
A18: Себестоимость потерь | E18: =E15*E23 -> 0 | F18: =F15*F23 -> 0 | G18: -25 | H18: -20 | I18: 0 | J18: -45 | L18: =L15*L23 -> 0 | M18: =M15*M23 -> 0 | N18: -25 | O18: -20 | P18: 0 | Q18: -45 | S18: =S15*S23 -> 0 | T18: =T15*T23 -> 0 | U18: -25 | V18: -20 | W18: 0 | X18: -45 | Z18: =Z15*Z23 -> 0 | AA18: =AA15*AA23 -> 0 | AB18: -25 | AC18: -20 | AD18: 0 | AE18: -45 | AG18: =AG15*AG23 -> 0 | AH18: =AH15*AH23 -> 0 | AI18: -25 | AJ18: -20 | AK18: 0 | AL18: -45
A19: Фнансовый результат | E19: =SUM(E16:E18) -> 0 | F19: =SUM(F16:F18) -> 0 | G19: -25 | H19: -20 | I19: 0 | J19: -45 | L19: =SUM(L16:L18) -> 0 | M19: =SUM(M16:M18) -> 0 | N19: =SUM(N16:N18) -> -25 | O19: =SUM(O16:O18) -> -20 | P19: =SUM(P16:P18) -> 0 | Q19: -45 | S19: =SUM(S16:S18) -> 0 | T19: =SUM(T16:T18) -> 0 | U19: =SUM(U16:U18) -> -25 | V19: =SUM(V16:V18) -> -20 | W19: =SUM(W16:W18) -> 0 | X19: -45 | Z19: =SUM(Z16:Z18) -> 0 | AA19: =SUM(AA16:AA18) -> 0 | AB19: =SUM(AB16:AB18) -> -25 | AC19: =SUM(AC16:AC18) -> -20 | AD19: =SUM(AD16:AD18) -> 0 | AE19: -45 | AG19: =SUM(AG16:AG18) -> 0 | AH19: =SUM(AH16:AH18) -> 0 | AI19: =SUM(AI16:AI18) -> -25 | AJ19: =SUM(AJ16:AJ18) -> -20 | AK19: =SUM(AK16:AK18) -> 0 | AL19: -45 | AN19: =SUM(J19,Q19,X19,AE19,AL19) -> -225
A21: Цена продаж | E21: =НСИ!$D$16 -> 9 | F21: =НСИ!$E$16 -> 12 | G21: =НСИ!$F$16 -> 15 | H21: =НСИ!$G$16 -> 7 | L21: =НСИ!$D$16 -> 9 | M21: =НСИ!$E$16 -> 12 | N21: =НСИ!$F$16 -> 15 | O21: =НСИ!$G$16 -> 7 | S21: =НСИ!$D$16 -> 9 | T21: =НСИ!$E$16 -> 12 | U21: =НСИ!$F$16 -> 15 | V21: =НСИ!$G$16 -> 7 | Z21: =НСИ!$D$16 -> 9 | AA21: =НСИ!$E$16 -> 12 | AB21: =НСИ!$F$16 -> 15 | AC21: =НСИ!$G$16 -> 7 | AG21: =НСИ!$D$16 -> 9 | AH21: =НСИ!$E$16 -> 12 | AI21: =НСИ!$F$16 -> 15 | AJ21: =НСИ!$G$16 -> 7
A22: Себестоимость производства | E22: =НСИ!$D$17 -> 6 | F22: =НСИ!$E$17 -> 6 | G22: =НСИ!$F$17 -> 10 | H22: =НСИ!$G$17 -> 6 | L22: =НСИ!$D$17 -> 6 | M22: =НСИ!$E$17 -> 6 | N22: =НСИ!$F$17 -> 10 | O22: =НСИ!$G$17 -> 6 | S22: =НСИ!$D$17 -> 6 | T22: =НСИ!$E$17 -> 6 | U22: =НСИ!$F$17 -> 10 | V22: =НСИ!$G$17 -> 6 | Z22: =НСИ!$D$17 -> 6 | AA22: =НСИ!$E$17 -> 6 | AB22: =НСИ!$F$17 -> 10 | AC22: =НСИ!$G$17 -> 6 | AG22: =НСИ!$D$17 -> 6 | AH22: =НСИ!$E$17 -> 6 | AI22: =НСИ!$F$17 -> 10 | AJ22: =НСИ!$G$17 -> 6
A23: Себестоимость потерь | E23: =НСИ!$D$18 -> 3 | F23: =НСИ!$E$18 -> 8 | G23: =НСИ!$F$18 -> 5 | H23: =НСИ!$G$18 -> 1 | L23: =НСИ!$D$18 -> 3 | M23: =НСИ!$E$18 -> 8 | N23: =НСИ!$F$18 -> 5 | O23: =НСИ!$G$18 -> 1 | S23: =НСИ!$D$18 -> 3 | T23: =НСИ!$E$18 -> 8 | U23: =НСИ!$F$18 -> 5 | V23: =НСИ!$G$18 -> 1 | Z23: =НСИ!$D$18 -> 3 | AA23: =НСИ!$E$18 -> 8 | AB23: =НСИ!$F$18 -> 5 | AC23: =НСИ!$G$18 -> 1 | AG23: =НСИ!$D$18 -> 3 | AH23: =НСИ!$E$18 -> 8 | AI23: =НСИ!$F$18 -> 5 | AJ23: =НСИ!$G$18 -> 1
A24: Производительность | E24: =НСИ!$D$13 -> 12 | F24: =НСИ!$E$13 -> 12 | G24: =НСИ!$F$13 -> 8 | H24: =НСИ!$G$13 -> 9 | L24: =НСИ!$D$13 -> 12 | M24: =НСИ!$E$13 -> 12 | N24: =НСИ!$F$13 -> 8 | O24: =НСИ!$G$13 -> 9 | S24: =НСИ!$D$13 -> 12 | T24: =НСИ!$E$13 -> 12 | U24: =НСИ!$F$13 -> 8 | V24: =НСИ!$G$13 -> 9 | Z24: =НСИ!$D$13 -> 12 | AA24: =НСИ!$E$13 -> 12 | AB24: =НСИ!$F$13 -> 8 | AC24: =НСИ!$G$13 -> 9 | AG24: =НСИ!$D$13 -> 12 | AH24: =НСИ!$E$13 -> 12 | AI24: =НСИ!$F$13 -> 8 | AJ24: =НСИ!$G$13 -> 9
A25: Норматив времени на переналадку | C25: A | D25: =E6 -> 1 | E25: =НСИ!$D$9 -> 0 | F25: =НСИ!$E$9 -> 5 | G25: =НСИ!$F$9 -> 5 | H25: =НСИ!$G$9 -> 10 | K25: =L6 -> 0 | L25: =НСИ!$D$9 -> 0 | M25: =НСИ!$E$9 -> 5 | N25: =НСИ!$F$9 -> 5 | O25: =НСИ!$G$9 -> 10 | R25: =S6 -> 0 | S25: =НСИ!$D$9 -> 0 | T25: =НСИ!$E$9 -> 5 | U25: =НСИ!$F$9 -> 5 | V25: =НСИ!$G$9 -> 10 | Y25: =Z6 -> 0 | Z25: =НСИ!$D$9 -> 0 | AA25: =НСИ!$E$9 -> 5 | AB25: =НСИ!$F$9 -> 5 | AC25: =НСИ!$G$9 -> 10 | AF25: =AG6 -> 0 | AG25: =НСИ!$D$9 -> 0 | AH25: =НСИ!$E$9 -> 5 | AI25: =НСИ!$F$9 -> 5 | AJ25: =НСИ!$G$9 -> 10
C26: B | D26: =F6 -> 0 | E26: =НСИ!$D$10 -> 5 | F26: =НСИ!$E$10 -> 0 | G26: =НСИ!$F$10 -> 8 | H26: =НСИ!$G$10 -> 12 | K26: =M6 -> 0 | L26: =НСИ!$D$10 -> 5 | M26: =НСИ!$E$10 -> 0 | N26: =НСИ!$F$10 -> 8 | O26: =НСИ!$G$10 -> 12 | R26: =T6 -> 0 | S26: =НСИ!$D$10 -> 5 | T26: =НСИ!$E$10 -> 0 | U26: =НСИ!$F$10 -> 8 | V26: =НСИ!$G$10 -> 12 | Y26: =AA6 -> 0 | Z26: =НСИ!$D$10 -> 5 | AA26: =НСИ!$E$10 -> 0 | AB26: =НСИ!$F$10 -> 8 | AC26: =НСИ!$G$10 -> 12 | AF26: =AH6 -> 0 | AG26: =НСИ!$D$10 -> 5 | AH26: =НСИ!$E$10 -> 0 | AI26: =НСИ!$F$10 -> 8 | AJ26: =НСИ!$G$10 -> 12
C27: C | D27: =G6 -> 0 | E27: =НСИ!$D$11 -> 8 | F27: =НСИ!$E$11 -> 10 | G27: =НСИ!$F$11 -> 0 | H27: =НСИ!$G$11 -> 15 | K27: =N6 -> 0 | L27: =НСИ!$D$11 -> 8 | M27: =НСИ!$E$11 -> 10 | N27: =НСИ!$F$11 -> 0 | O27: =НСИ!$G$11 -> 15 | R27: =U6 -> 0 | S27: =НСИ!$D$11 -> 8 | T27: =НСИ!$E$11 -> 10 | U27: =НСИ!$F$11 -> 0 | V27: =НСИ!$G$11 -> 15 | Y27: =AB6 -> 0 | Z27: =НСИ!$D$11 -> 8 | AA27: =НСИ!$E$11 -> 10 | AB27: =НСИ!$F$11 -> 0 | AC27: =НСИ!$G$11 -> 15 | AF27: =AI6 -> 0 | AG27: =НСИ!$D$11 -> 8 | AH27: =НСИ!$E$11 -> 10 | AI27: =НСИ!$F$11 -> 0 | AJ27: =НСИ!$G$11 -> 15
C28: D | D28: =H6 -> 0 | E28: =НСИ!$D$12 -> 10 | F28: =НСИ!$E$12 -> 8 | G28: =НСИ!$F$12 -> 5 | H28: =НСИ!$G$12 -> 0 | K28: =O6 -> 0 | L28: =НСИ!$D$12 -> 10 | M28: =НСИ!$E$12 -> 8 | N28: =НСИ!$F$12 -> 5 | O28: =НСИ!$G$12 -> 0 | R28: =V6 -> 0 | S28: =НСИ!$D$12 -> 10 | T28: =НСИ!$E$12 -> 8 | U28: =НСИ!$F$12 -> 5 | V28: =НСИ!$G$12 -> 0 | Y28: =AC6 -> 0 | Z28: =НСИ!$D$12 -> 10 | AA28: =НСИ!$E$12 -> 8 | AB28: =НСИ!$F$12 -> 5 | AC28: =НСИ!$G$12 -> 0 | AF28: =AJ6 -> 0 | AG28: =НСИ!$D$12 -> 10 | AH28: =НСИ!$E$12 -> 8 | AI28: =НСИ!$F$12 -> 5 | AJ28: =НСИ!$G$12 -> 0
C29: I | D29: =I5 -> 0 | K29: =P5 -> 0 | R29: =W5 -> 0 | Y29: =AD5 -> 0 | AF29: =AK5 -> 0
A30: Время на переналадку | E30: =SUMPRODUCT(E25:E28,--($D$25:$D$28=E6+1)) -> 0 | F30: =SUMPRODUCT(F25:F28,--($D$25:$D$28=F6+1)) -> 5 | G30: 5 | H30: 10 | I30: 0 | L30: =SUMPRODUCT(L25:L28,--($D$25:$D$28=L6+1)) -> 0 | M30: =SUMPRODUCT(M25:M28,--($D$25:$D$28=M6+1)) -> 5 | N30: 5 | O30: 10 | P30: 0 | S30: =SUMPRODUCT(S25:S28,--($D$25:$D$28=S6+1)) -> 0 | T30: =SUMPRODUCT(T25:T28,--($D$25:$D$28=T6+1)) -> 5 | U30: 5 | V30: 10 | W30: 0 | Z30: =SUMPRODUCT(Z25:Z28,--($D$25:$D$28=Z6+1)) -> 0 | AA30: =SUMPRODUCT(AA25:AA28,--($D$25:$D$28=AA6+1)) -> 5 | AB30: 5 | AC30: 10 | AD30: 0 | AG30: =SUMPRODUCT(AG25:AG28,--($D$25:$D$28=AG6+1)) -> 0 | AH30: =SUMPRODUCT(AH25:AH28,--($D$25:$D$28=AH6+1)) -> 5 | AI30: 5 | AJ30: 10 | AK30: 0
A32: Номатив потерь | C32: A | D32: =D25 -> 1 | E32: =НСИ!$D$5 -> 0 | F32: =НСИ!$E$5 -> 0 | G32: =НСИ!$F$5 -> -5 | H32: =НСИ!$G$5 -> -20 | K32: =K25 -> 0 | L32: =НСИ!$D$5 -> 0 | M32: =НСИ!$E$5 -> 0 | N32: =НСИ!$F$5 -> -5 | O32: =НСИ!$G$5 -> -20 | R32: =R25 -> 0 | S32: =НСИ!$D$5 -> 0 | T32: =НСИ!$E$5 -> 0 | U32: =НСИ!$F$5 -> -5 | V32: =НСИ!$G$5 -> -20 | Y32: =Y25 -> 0 | Z32: =НСИ!$D$5 -> 0 | AA32: =НСИ!$E$5 -> 0 | AB32: =НСИ!$F$5 -> -5 | AC32: =НСИ!$G$5 -> -20 | AF32: =AF25 -> 0 | AG32: =НСИ!$D$5 -> 0 | AH32: =НСИ!$E$5 -> 0 | AI32: =НСИ!$F$5 -> -5 | AJ32: =НСИ!$G$5 -> -20
C33: B | D33: =D26 -> 0 | E33: =НСИ!$D$6 -> -10 | F33: =НСИ!$E$6 -> 0 | G33: =НСИ!$F$6 -> 0 | H33: =НСИ!$G$6 -> 0 | K33: =K26 -> 0 | L33: =НСИ!$D$6 -> -10 | M33: =НСИ!$E$6 -> 0 | N33: =НСИ!$F$6 -> 0 | O33: =НСИ!$G$6 -> 0 | R33: =R26 -> 0 | S33: =НСИ!$D$6 -> -10 | T33: =НСИ!$E$6 -> 0 | U33: =НСИ!$F$6 -> 0 | V33: =НСИ!$G$6 -> 0 | Y33: =Y26 -> 0 | Z33: =НСИ!$D$6 -> -10 | AA33: =НСИ!$E$6 -> 0 | AB33: =НСИ!$F$6 -> 0 | AC33: =НСИ!$G$6 -> 0 | AF33: =AF26 -> 0 | AG33: =НСИ!$D$6 -> -10 | AH33: =НСИ!$E$6 -> 0 | AI33: =НСИ!$F$6 -> 0 | AJ33: =НСИ!$G$6 -> 0
C34: C | D34: 0 | E34: =НСИ!$D$7 -> 0 | F34: =НСИ!$E$7 -> 0 | G34: =НСИ!$F$7 -> 0 | H34: =НСИ!$G$7 -> 0 | K34: 0 | L34: =НСИ!$D$7 -> 0 | M34: =НСИ!$E$7 -> 0 | N34: =НСИ!$F$7 -> 0 | O34: =НСИ!$G$7 -> 0 | R34: 0 | S34: =НСИ!$D$7 -> 0 | T34: =НСИ!$E$7 -> 0 | U34: =НСИ!$F$7 -> 0 | V34: =НСИ!$G$7 -> 0 | Y34: 0 | Z34: =НСИ!$D$7 -> 0 | AA34: =НСИ!$E$7 -> 0 | AB34: =НСИ!$F$7 -> 0 | AC34: =НСИ!$G$7 -> 0 | AF34: 0 | AG34: =НСИ!$D$7 -> 0 | AH34: =НСИ!$E$7 -> 0 | AI34: =НСИ!$F$7 -> 0 | AJ34: =НСИ!$G$7 -> 0
C35: D | D35: 0 | E35: =НСИ!$D$8 -> 0 | F35: =НСИ!$E$8 -> -5 | G35: =НСИ!$F$8 -> 0 | H35: =НСИ!$G$8 -> 0 | K35: 0 | L35: =НСИ!$D$8 -> 0 | M35: =НСИ!$E$8 -> -5 | N35: =НСИ!$F$8 -> 0 | O35: =НСИ!$G$8 -> 0 | R35: 0 | S35: =НСИ!$D$8 -> 0 | T35: =НСИ!$E$8 -> -5 | U35: =НСИ!$F$8 -> 0 | V35: =НСИ!$G$8 -> 0 | Y35: 0 | Z35: =НСИ!$D$8 -> 0 | AA35: =НСИ!$E$8 -> -5 | AB35: =НСИ!$F$8 -> 0 | AC35: =НСИ!$G$8 -> 0 | AF35: 0 | AG35: =НСИ!$D$8 -> 0 | AH35: =НСИ!$E$8 -> -5 | AI35: =НСИ!$F$8 -> 0 | AJ35: =НСИ!$G$8 -> 0
C36: I
A37: Потери | E37: =SUMPRODUCT(E32:E35,--($D$25:$D$28=E14+1)) -> 0 | F37: =SUMPRODUCT(F32:F35,--($D$25:$D$28=F14+1)) -> 0 | G37: -5 | H37: -20 | I37: 0 | L37: =SUMPRODUCT(L32:L35,--($D$25:$D$28=L14+1)) -> 0 | M37: =SUMPRODUCT(M32:M35,--($D$25:$D$28=M14+1)) -> 0 | N37: -5 | O37: -20 | P37: 0 | S37: =SUMPRODUCT(S32:S35,--($D$25:$D$28=S14+1)) -> 0 | T37: =SUMPRODUCT(T32:T35,--($D$25:$D$28=T14+1)) -> 0 | U37: -5 | V37: -20 | W37: 0 | Z37: =SUMPRODUCT(Z32:Z35,--($D$25:$D$28=Z14+1)) -> 0 | AA37: =SUMPRODUCT(AA32:AA35,--($D$25:$D$28=AA14+1)) -> 0 | AB37: -5 | AC37: -20 | AD37: 0 | AG37: =SUMPRODUCT(AG32:AG35,--($D$25:$D$28=AG14+1)) -> 0 | AH37: =SUMPRODUCT(AH32:AH35,--($D$25:$D$28=AH14+1)) -> 0 | AI37: -5 | AJ37: -20 | AK37: 0
A39: Минимальный остаток | E39: =НСИ!$D$14 -> 50 | F39: =НСИ!$E$14 -> 30 | G39: =НСИ!$F$14 -> 100 | H39: =НСИ!$G$14 -> 75 | J39: =SUM(E39:I39) -> 255 | L39: =НСИ!$D$14 -> 50 | M39: =НСИ!$E$14 -> 30 | N39: =НСИ!$F$14 -> 100 | O39: =НСИ!$G$14 -> 75 | Q39: =SUM(L39:P39) -> 255 | S39: =НСИ!$D$14 -> 50 | T39: =НСИ!$E$14 -> 30 | U39: =НСИ!$F$14 -> 100 | V39: =НСИ!$G$14 -> 75 | X39: =SUM(S39:W39) -> 255 | Z39: =НСИ!$D$14 -> 50 | AA39: =НСИ!$E$14 -> 30 | AB39: =НСИ!$F$14 -> 100 | AC39: =НСИ!$G$14 -> 75 | AE39: =SUM(Z39:AD39) -> 255 | AG39: =НСИ!$D$14 -> 50 | AH39: =НСИ!$E$14 -> 30 | AI39: =НСИ!$F$14 -> 100 | AJ39: =НСИ!$G$14 -> 75 | AL39: =SUM(AG39:AK39) -> 255
A40: Максимальный остаток | E40: =НСИ!$D$15 -> 400 | F40: =НСИ!$E$15 -> 400 | G40: =НСИ!$F$15 -> 500 | H40: =НСИ!$G$15 -> 700 | J40: =SUM(E40:I40) -> 2000 | L40: =НСИ!$D$15 -> 400 | M40: =НСИ!$E$15 -> 400 | N40: =НСИ!$F$15 -> 500 | O40: =НСИ!$G$15 -> 700 | Q40: =SUM(L40:P40) -> 2000 | S40: =НСИ!$D$15 -> 400 | T40: =НСИ!$E$15 -> 400 | U40: =НСИ!$F$15 -> 500 | V40: =НСИ!$G$15 -> 700 | X40: =SUM(S40:W40) -> 2000 | Z40: =НСИ!$D$15 -> 400 | AA40: =НСИ!$E$15 -> 400 | AB40: =НСИ!$F$15 -> 500 | AC40: =НСИ!$G$15 -> 700 | AE40: =SUM(Z40:AD40) -> 2000 | AG40: =НСИ!$D$15 -> 400 | AH40: =НСИ!$E$15 -> 400 | AI40: =НСИ!$F$15 -> 500 | AJ40: =НСИ!$G$15 -> 700 | AL40: =SUM(AG40:AK40) -> 2000

Sheet НСИ
D4: A | E4: B | F4: C | G4: D
B5: Потери | C5: A | D5: 0 | F5: -5 | G5: -20
B6: Потери | C6: B | D6: -10 | E6: 0
B7: Потери | C7: C | F7: 0
B8: Потери | C8: D | E8: -5 | G8: 0
B9: Время на переналадку | C9: A | D9: 0 | E9: 5 | F9: 5 | G9: 10
B10: Время на переналадку | C10: B | D10: 5 | E10: 0 | F10: 8 | G10: 12
B11: Время на переналадку | C11: C | D11: 8 | E11: 10 | F11: 0 | G11: 15
B12: Время на переналадку | C12: D | D12: 10 | E12: 8 | F12: 5 | G12: 0
B13: Производительность | D13: 12 | E13: 12 | F13: 8 | G13: 9
B14: Минимальный остаток | D14: 50 | E14: 30 | F14: 100 | G14: 75
B15: Максимальный остаток | D15: 400 | E15: 400 | F15: 500 | G15: 700
B16: Цена продаж | D16: 9 | E16: 12 | F16: 15 | G16: 7
B17: Себестоимость производства | D17: 6 | E17: 6 | F17: 10 | G17: 6
B18: Себестоимость потерь | D18: 3 | E18: 8 | F18: 5 | G18: 1
